Workbook

Sheet Quartalsbericht
A1: Rundungen | B1: Schlüssel | C1: Mandant | D1: Filiale | E1: Filiale_Sort | F1: Kostenstelle | G1: Kostenstelle_Sort | H1: Marke | I1: Marke_Sort | J1: Datenart | K1: Kontenart | L1: Jahr | M1: Monat | N1: Wert | O1: Ergebnisrechnung international (IER)
A2: Cent | C2: 1 | D2: 0 - ohne | E2: 0 | F2: 0 - ohne | G2: 0 | H2: 0 - ohne | I2: 0 | J2: BB1 | K2: EXT | L2: 2023 | M2: 1 | N2: 0
A3: Euro | C3: 1 | D3: 0 - ohne | E3: 0 | F3: 0 - ohne | G3: 0 | H3: 0 - ohne | I3: 0 | J3: BB2 | K3: EXT | L3: 2023 | M3: 1 | N3: 0 | Q3: aktuelles Jahr | S3: % | U3: Vorjahr | W3: % | X3: Abweichung | Y3: Abw. % | Z3: Betriebsvergleich | AA3: %
A4: Tausend Euro | C4: 1 | D4: 0 - ohne | E4: 0 | F4: 0 - ohne | G4: 0 | H4: 0 - ohne | I4: 0 | J4: IST | K4: EXT | L4: 2023 | M4: 1 | N4: 0
C5: 1 | D5: 0 - ohne | E5: 0 | F5: 0 - ohne | G5: 0 | H5: 0 - ohne | I5: 0 | J5: IST | K5: EXT | L5: 2023 | M5: 1 | N5: 0
A6: Anzahl Leerzeilen | C6: 1 | D6: 0 - ohne | E6: 0 | F6: 0 - ohne | G6: 0 | H6: 0 - ohne | I6: 0 | J6: IST | K6: EXT | L6: 2023 | M6: 1 | N6: 0 | Q6: EURO | S6: Anteil | U6: EURO | W6: Anteil | X6: Abweichung EURO | Y6: Abweichung % | Z6: Betriebsvergleich | AA6: Anteil
A7: 500 | C7: 1 | D7: 0 - ohne | E7: 0 | F7: 0 - ohne | G7: 0 | H7: 0 - ohne | I7: 0 | J7: IST | K7: EXT | L7: 2023 | M7: 2 | N7: 0
C8: 1 | D8: 0 - ohne | E8: 0 | F8: 0 - ohne | G8: 0 | H8: 0 - ohne | I8: 0 | J8: IST | K8: EXT | L8: 2023 | M8: 3 | N8: 0 | O8: Mandant: | Q8: 1 | R8: ="P18:R" & 17 + COUNTA(P18:P499) -> P18:R269 | U8: 1 | V8: ="T18:V" & 17 + COUNTA(T18:T499) -> T18:V285
C9: 1 | D9: 0 - ohne | E9: 0 | F9: 0 - ohne | G9: 0 | H9: 0 - ohne | I9: 0 | J9: IST | K9: EXT | L9: 2023 | M9: 4 | N9: 0
C10: 1 | D10: 0 - ohne | E10: 0 | F10: 0 - ohne | G10: 0 | H10: 0 - ohne | I10: 0 | J10: IST | K10: EXT | L10: 2023 | M10: 5 | N10: 0 | O10: Jahr: | P10: Jahr | Q10: 2024 | T10: Jahr | U10: 2023
C11: 1 | D11: 0 - ohne | E11: 0 | F11: 0 - ohne | G11: 0 | H11: 0 - ohne | I11: 0 | J11: IST | K11: EXT | L11: 2023 | M11: 6 | N11: 0 | O11: Monat: | P11: Monat | Q11: (Mehrere Elemente) | T11: Monat | U11: (Mehrere Elemente)
C12: 1 | D12: 0 - ohne | E12: 0 | F12: 0 - ohne | G12: 0 | H12: 0 - ohne | I12: 0 | J12: IST | K12: EXT | L12: 2023 | M12: 7 | N12: 0 | O12: Kostenstelle: | P12: Kostenstelle | Q12: (Alle) | T12: Kostenstelle | U12: (Alle)
C13: 1 | D13: 0 - ohne | E13: 0 | F13: 0 - ohne | G13: 0 | H13: 0 - ohne | I13: 0 | J13: IST | K13: EXT | L13: 2023 | M13: 8 | N13: 0 | O13: Marke: | P13: Marke | Q13: (Alle) | T13: Marke | U13: (Alle)
C14: 1 | D14: 0 - ohne | E14: 0 | F14: 0 - ohne | G14: 0 | H14: 0 - ohne | I14: 0 | J14: IST | K14: EXT | L14: 2023 | M14: 9 | N14: 0 | O14: Datenart: | P14: Datenart | Q14: (Alle) | T14: Datenart | U14: (Alle)
C15: 1 | D15: 0 - ohne | E15: 0 | F15: 0 - ohne | G15: 0 | H15: 0 - ohne | I15: 0 | J15: IST | K15: EXT | L15: 2023 | M15: 10 | N15: 0 | O15: Kontenart: | P15: Kontenart | Q15: (Alle) | T15: Kontenart | U15: (Alle)
C16: 1 | D16: 0 - ohne | E16: 0 | F16: 0 - ohne | G16: 0 | H16: 0 - ohne | I16: 0 | J16: IST | K16: EXT | L16: 2023 | M16: 11 | N16: 0 | O16: Rundung: | P16: 3 | Q16: Cent | T16: 3 | U16: Cent | X16: Cent | Z16: Cent
C17: 1 | D17: 0 - ohne | E17: 0 | F17: 0 - ohne | G17: 0 | H17: 0 - ohne | I17: 0 | J17: IST | K17: EXT | L17: 2023 | M17: 12 | N17: 0 | Q17: AnzahlWert | R17: SummeWert | U17: AnzahlWert | V17: SummeWert
C18: 1 | D18: 0 - ohne | E18: 0 | F18: 0 - ohne | G18: 0 | H18: 0 - ohne | I18: 0 | J18: IST | K18: EXT | L18: 2024 | M18: 1 | N18: 0 | P18: (Leer) | Q18: 3 | R18: 0 | T18: (Leer) | U18: 34 | V18: 0
C19: 1 | D19: 0 - ohne | E19: 0 | F19: 0 - ohne | G19: 0 | H19: 0 - ohne | I19: 0 | J19: IST | K19: EXT | L19: 2024 | M19: 2 | N19: 0 | P19: [KA=1;IK=2120100;EKZ=0] | Q19: 3 | R19: 2643.34 | T19: [KA=1;IK=2120100;EKZ=0] | U19: 24 | V19: 1217.76
C20: 1 | D20: 0 - ohne | E20: 0 | F20: 0 - ohne | G20: 0 | H20: 0 - ohne | I20: 0 | J20: IST | K20: EXT | L20: 2024 | M20: 3 | N20: 0 | P20: [KA=1;IK=2140100;EKZ=0] | Q20: 3 | R20: 1076.68 | T20: [KA=1;IK=2140100;EKZ=0] | U20: 24 | V20: 1017.98
C21: 1 | D21: 0 - ohne | E21: 0 | F21: 0 - ohne | G21: 0 | H21: 0 - ohne | I21: 0 | J21: IST | K21: EXT | L21: 2024 | M21: 4 | N21: 0 | P21: [KA=1;IK=2200100;EKZ=0] | Q21: 1 | R21: 20291.87 | T21: [KA=1;IK=2200100;EKZ=0] | U21: 8 | V21: -35402.24
C22: 1 | D22: 0 - ohne | E22: 0 | F22: 0 - ohne | G22: 0 | H22: 0 - ohne | I22: 0 | J22: IST | K22: EXT | L22: 2024 | M22: 5 | N22: 0 | P22: [KA=1;IK=2208100;EKZ=0] | Q22: 2 | R22: 2.91 | T22: [KA=1;IK=2208100;EKZ=0] | U22: 8 | V22: 3.17
C23: 1 | D23: 0 - ohne | E23: 0 | F23: 0 - ohne | G23: 0 | H23: 0 - ohne | I23: 0 | J23: IST | K23: EXT | L23: 2024 | M23: 6 | N23: 0 | P23: [KA=1;IK=2210100;EKZ=0] | Q23: 2 | R23: 53.03 | T23: [KA=1;IK=2210100;EKZ=0] | U23: 8 | V23: 57.66
C24: 1 | D24: 0 - ohne | E24: 0 | F24: 0 - ohne | G24: 0 | H24: 0 - ohne | I24: 0 | J24: IST | K24: EXT | L24: 2024 | M24: 7 | N24: 0 | P24: [KA=1;IK=2405100;EKZ=0] | Q24: 1 | R24: 101.99 | T24: [KA=1;IK=2380100;EKZ=0] | U24: 8 | V24: 20
C25: 1 | D25: 0 - ohne | E25: 0 | F25: 0 - ohne | G25: 0 | H25: 0 - ohne | I25: 0 | J25: IST | K25: EXT | L25: 2024 | M25: 8 | N25: 0 | P25: [KA=1;IK=2650100;EKZ=0] | Q25: 3 | R25: -2187.82 | T25: [KA=1;IK=2650100;EKZ=0] | U25: 24 | V25: -2821.73
C26: 1 | D26: 0 - ohne | E26: 0 | F26: 0 - ohne | G26: 0 | H26: 0 - ohne | I26: 0 | J26: IST | K26: EXT | L26: 2024 | M26: 9 | N26: 0 | P26: [KA=1;IK=2700100;EKZ=0] | Q26: 4 | R26: -3443.68 | T26: [KA=1;IK=2700100;EKZ=0] | U26: 24 | V26: -627.2
C27: 1 | D27: 0 - ohne | E27: 0 | F27: 0 - ohne | G27: 0 | H27: 0 - ohne | I27: 0 | J27: IST | K27: EXT | L27: 2024 | M27: 10 | N27: 0 | P27: [KA=1;IK=2707100;EKZ=0] | Q27: 10 | R27: -2948.58 | T27: [KA=1;IK=2707100;EKZ=0] | U27: 24 | V27: -2948.58
C28: 1 | D28: 0 - ohne | E28: 0 | F28: 0 - ohne | G28: 0 | H28: 0 - ohne | I28: 0 | J28: IST | K28: EXT | L28: 2024 | M28: 11 | N28: 0 | P28: [KA=1;IK=2742100;EKZ=0] | Q28: 5 | R28: -12016.7 | T28: [KA=1;IK=2742100;EKZ=0] | U28: 40 | V28: -22918.26
C29: 1 | D29: 0 - ohne | E29: 0 | F29: 0 - ohne | G29: 0 | H29: 0 - ohne | I29: 0 | J29: IST | K29: EXT | L29: 2024 | M29: 12 | N29: 0 | P29: [KA=1;IK=2910100;EKZ=0] | Q29: 3 | R29: 33000 | T29: [KA=1;IK=2910100;EKZ=0] | U29: 24 | V29: 33000
C30: 1 | D30: 0 - ohne | E30: 0 | F30: 0 - ohne | G30: 0 | H30: 0 - ohne | I30: 0 | J30: IST | K30: INT | L30: 2023 | M30: 1 | N30: 0 | P30: [KA=1;IK=2940100;EKZ=0] | Q30: 9 | R30: 45000 | T30: [KA=1;IK=2940100;EKZ=0] | U30: 6 | V30: 45000
C31: 1 | D31: 0 - ohne | E31: 0 | F31: 0 - ohne | G31: 0 | H31: 0 - ohne | I31: 0 | J31: IST | K31: VMU | L31: 2023 | M31: 1 | N31: 0 | P31: [KA=1;IK=4070130;EKZ=0] | Q31: 1 | R31: 400 | T31: [KA=1;IK=4052110;EKZ=0] | U31: 1 | V31: 250
C32: 1 | D32: 0 - ohne | E32: 0 | F32: 0 - ohne | G32: 0 | H32: 10 - Mercedes-Benz | I32: 10 | J32: IST | K32: EXT | L32: 2023 | M32: 1 | N32: 0 | P32: [KA=1;IK=4100110;EKZ=0] | Q32: 3 | R32: 9000 | T32: [KA=1;IK=4070130;EKZ=0] | U32: 2 | V32: 1241.38
C33: 1 | D33: 0 - ohne | E33: 0 | F33: 0 - ohne | G33: 0 | H33: 20 - smart | I33: 20 | J33: IST | K33: EXT | L33: 2023 | M33: 1 | N33: 0 | P33: [KA=1;IK=4200110;EKZ=0] | Q33: 6 | R33: 66328.29 | T33: [KA=1;IK=4072130;EKZ=0] | U33: 1 | V33: 122.69
C34: 1 | D34: 0 - ohne | E34: 0 | F34: 0 - ohne | G34: 0 | H34: 30 - Chrysler/Jeep | I34: 30 | J34: IST | K34: EXT | L34: 2023 | M34: 1 | N34: 0 | P34: [KA=1;IK=4200140;EKZ=0] | Q34: 3 | R34: 92318.37 | T34: [KA=1;IK=4100110;EKZ=0] | U34: 3 | V34: 12675
C35: 1 | D35: 0 - ohne | E35: 0 | F35: 0 - ohne | G35: 0 | H35: 40 - Mitsubishi | I35: 40 | J35: IST | K35: EXT | L35: 2023 | M35: 1 | N35: 0 | P35: [KA=1;IK=4300100;EKZ=0] | Q35: 1 | R35: 60 | T35: [KA=1;IK=4200110;EKZ=0] | U35: 6 | V35: 78273.17
C36: 1 | D36: 0 - ohne | E36: 0 | F36: 0 - ohne | G36: 0 | H36: 80 - weitereDC | I36: 80 | J36: IST | K36: EXT | L36: 2023 | M36: 1 | N36: 0 | P36: [KA=1;IK=4350110;EKZ=0] | Q36: 3 | R36: 19527.12 | T36: [KA=1;IK=4200140;EKZ=0] | U36: 3 | V36: 136898.98
C37: 1 | D37: 0 - ohne | E37: 0 | F37: 0 - ohne | G37: 0 | H37: 90 - Fremdfabrikate | I37: 90 | J37: IST | K37: EXT | L37: 2023 | M37: 1 | N37: 0 | P37: [KA=1;IK=4500100;EKZ=5] | Q37: 9 | R37: 76331.98 | T37: [KA=1;IK=4300100;EKZ=0] | U37: 1 | V37: 171
C38: 1 | D38: 0 - ohne | E38: 0 | F38: 9 - PSEUDO | G38: 9 | H38: 0 - ohne | I38: 0 | J38: IST | K38: EXT | L38: 2023 | M38: 1 | N38: 0 | P38: [KA=1;IK=4550100;EKZ=5] | Q38: 9 | R38: 24790.16 | T38: [KA=1;IK=4350110;EKZ=0] | U38: 3 | V38: 18365.38
C39: 1 | D39: 0 - ohne | E39: 0 | F39: 111000 - Verkauf PKW | G39: 111000 | H39: 0 - ohne | I39: 0 | J39: IST | K39: EXT | L39: 2023 | M39: 1 | N39: 0 | P39: [KA=1;IK=4556100;EKZ=5] | Q39: 3 | R39: 5250.2 | T39: [KA=1;IK=4550100;EKZ=5] | U39: 6 | V39: 23586.96
C40: 1 | D40: 0 - ohne | E40: 0 | F40: 112000 - Verkauf PKW | G40: 112000 | H40: 0 - ohne | I40: 0 | J40: IST | K40: EXT | L40: 2023 | M40: 1 | N40: 0 | P40: [KA=1;IK=4600100;EKZ=7] | Q40: 24 | R40: 3321.28 | T40: [KA=1;IK=4553100;EKZ=5] | U40: 3 | V40: 2581.63
C41: 1 | D41: 0 - ohne | E41: 0 | F41: 120000 - Verkauf LKW | G41: 120000 | H41: 0 - ohne | I41: 0 | J41: IST | K41: EXT | L41: 2023 | M41: 1 | N41: 0 | P41: [KA=1;IK=4610100;EKZ=5] | Q41: 23 | R41: 80926.05 | T41: [KA=1;IK=4556100;EKZ=5] | U41: 2 | V41: 2060.78
C42: 1 | D42: 0 - ohne | E42: 0 | F42: 121000 - Verkauf LKW | G42: 121000 | H42: 0 - ohne | I42: 0 | J42: IST | K42: EXT | L42: 2023 | M42: 1 | N42: 0 | P42: [KA=1;IK=4610100;EKZ=6] | Q42: 24 | R42: 69975.3 | T42: [KA=1;IK=4600100;EKZ=6] | U42: 2 | V42: 1158.8
C43: 1 | D43: 0 - ohne | E43: 0 | F43: 122000 - Verkauf LKW | G43: 122000 | H43: 0 - ohne | I43: 0 | J43: IST | K43: EXT | L43: 2023 | M43: 1 | N43: 0 | P43: [KA=1;IK=4610100;EKZ=7] | Q43: 24 | R43: 23239.39 | T43: [KA=1;IK=4600100;EKZ=7] | U43: 16 | V43: 2292.99
C44: 1 | D44: 0 - ohne | E44: 0 | F44: 130000 - Verkauf TRAPO | G44: 130000 | H44: 0 - ohne | I44: 0 | J44: IST | K44: EXT | L44: 2023 | M44: 1 | N44: 0 | P44: [KA=1;IK=4620100;EKZ=5] | Q44: 3 | R44: 3 | T44: [KA=1;IK=4610100;EKZ=5] | U44: 18 | V44: 90882.04
C45: 1 | D45: 0 - ohne | E45: 0 | F45: 131000 - Verkauf TRAPO | G45: 131000 | H45: 0 - ohne | I45: 0 | J45: IST | K45: EXT | L45: 2023 | M45: 1 | N45: 0 | P45: [KA=1;IK=4630100;EKZ=0] | Q45: 26 | R45: 75508.8 | T45: [KA=1;IK=4610100;EKZ=6] | U45: 24 | V45: 42104.6
C46: 1 | D46: 0 - ohne | E46: 0 | F46: 132000 - Verkauf TRAPO | G46: 132000 | H46: 0 - ohne | I46: 0 | J46: IST | K46: EXT | L46: 2023 | M46: 1 | N46: 0 | P46: [KA=1;IK=4640100;EKZ=5] | Q46: 3 | R46: 114 | T46: [KA=1;IK=4610100;EKZ=7] | U46: 24 | V46: 22309.33
C47: 1 | D47: 0 - ohne | E47: 0 | F47: 210000 - Teile/Zubehör | G47: 210000 | H47: 0 - ohne | I47: 0 | J47: IST | K47: EXT | L47: 2023 | M47: 1 | N47: 0 | P47: [KA=1;IK=4640100;EKZ=6] | Q47: 6 | R47: 16705.63 | T47: [KA=1;IK=4630100;EKZ=0] | U47: 24 | V47: 64743
C48: 1 | D48: 0 - ohne | E48: 0 | F48: 211000 - Teile/Zubehör | G48: 211000 | H48: 0 - ohne | I48: 0 | J48: IST | K48: EXT | L48: 2023 | M48: 1 | N48: 0 | P48: [KA=1;IK=4651100;EKZ=7] | Q48: 24 | R48: 88866.4 | T48: [KA=1;IK=4640100;EKZ=6] | U48: 6 | V48: 18740.99
C49: 1 | D49: 0 - ohne | E49: 0 | F49: 212000 - Teile/Zubehör | G49: 212000 | H49: 0 - ohne | I49: 0 | J49: IST | K49: EXT | L49: 2023 | M49: 1 | N49: 0 | P49: [KA=1;IK=4652100;EKZ=7] | Q49: 1 | R49: 8690 | T49: [KA=1;IK=4651100;EKZ=7] | U49: 24 | V49: 81919.23
C50: 1 | D50: 0 - ohne | E50: 0 | F50: 213000 - Teile/Zubehör | G50: 213000 | H50: 0 - ohne | I50: 0 | J50: IST | K50: EXT | L50: 2023 | M50: 1 | N50: 0 | P50: [KA=1;IK=4661100;EKZ=7] | Q50: 24 | R50: 1739.58 | T50: [KA=1;IK=4652100;EKZ=7] | U50: 8 | V50: 9144
C51: 1 | D51: 0 - ohne | E51: 0 | F51: 222000 - Wst. PKW | G51: 222000 | H51: 0 - ohne | I51: 0 | J51: IST | K51: EXT | L51: 2023 | M51: 1 | N51: 0 | P51: [KA=1;IK=4664100;EKZ=5] | Q51: 13 | R51: 3088.57 | T51: [KA=1;IK=4661100;EKZ=7] | U51: 24 | V51: 1835.05
C52: 1 | D52: 0 - ohne | E52: 0 | F52: 223000 - Wst. LKW | G52: 223000 | H52: 0 - ohne | I52: 0 | J52: IST | K52: EXT | L52: 2023 | M52: 1 | N52: 0 | P52: [KA=1;IK=4664100;EKZ=6] | Q52: 12 | R52: 600 | T52: [KA=1;IK=4664100;EKZ=5] | U52: 8 | V52: 1824.31
C53: 1 | D53: 0 - ohne | E53: 0 | F53: 224000 - Karosserie | G53: 224000 | H53: 0 - ohne | I53: 0 | J53: IST | K53: EXT | L53: 2023 | M53: 1 | N53: 0 | P53: [KA=1;IK=4664100;EKZ=7] | Q53: 27 | R53: 49447.8 | T53: [KA=1;IK=4664100;EKZ=6] | U53: 4 | V53: 200
C54: 1 | D54: 0 - ohne | E54: 0 | F54: 225000 - Lackiererei | G54: 225000 | H54: 0 - ohne | I54: 0 | J54: IST | K54: EXT | L54: 2023 | M54: 1 | N54: 0 | P54: [KA=1;IK=4673100;EKZ=5] | Q54: 10 | R54: 1574.37 | T54: [KA=1;IK=4664100;EKZ=7] | U54: 40 | V54: 49035.8
C55: 1 | D55: 0 - ohne | E55: 0 | F55: 310000 - Sonstiges | G55: 310000 | H55: 0 - ohne | I55: 0 | J55: IST | K55: EXT | L55: 2023 | M55: 1 | N55: 0 | P55: [KA=1;IK=4673100;EKZ=6] | Q55: 8 | R55: 1070.96 | T55: [KA=1;IK=4673100;EKZ=5] | U55: 9 | V55: 812.96
C56: 1 | D56: 1 - Mainz-Kastel | E56: 1 | F56: 0 - ohne | G56: 0 | H56: 0 - ohne | I56: 0 | J56: IST | K56: EXT | L56: 2023 | M56: 1 | N56: 0 | P56: [KA=1;IK=4673100;EKZ=7] | Q56: 18 | R56: 1395.38 | T56: [KA=1;IK=4673100;EKZ=6] | U56: 8 | V56: 597.82
B57: [KA=1;IK=2120100;EKZ=0] | C57: 1 | D57: 1 - Mainz-Kastel | E57: 1 | F57: 60000 - allgemeiner Betrieb | G57: 60000 | H57: 10 - Mercedes-Benz | I57: 10 | J57: IST | K57: EXT | L57: 2024 | M57: 1 | N57: 893.37 | P57: [KA=1;IK=4700100;EKZ=5] | Q57: 3 | R57: 436.98 | T57: [KA=1;IK=4673100;EKZ=7] | U57: 16 | V57: 311.17
B58: [KA=1;IK=2120100;EKZ=0] | C58: 1 | D58: 1 - Mainz-Kastel | E58: 1 | F58: 60000 - allgemeiner Betrieb | G58: 60000 | H58: 10 - Mercedes-Benz | I58: 10 | J58: IST | K58: EXT | L58: 2024 | M58: 2 | N58: 987.6 | P58: [KA=1;IK=4700100;EKZ=7] | Q58: 8 | R58: 120.81 | T58: [KA=1;IK=4700100;EKZ=5] | U58: 2 | V58: 610.92
B59: [KA=1;IK=2120100;EKZ=0] | C59: 1 | D59: 1 - Mainz-Kastel | E59: 1 | F59: 60000 - allgemeiner Betrieb | G59: 60000 | H59: 10 - Mercedes-Benz | I59: 10 | J59: IST | K59: EXT | L59: 2024 | M59: 3 | N59: 762.37 | P59: [KA=1;IK=4720100;EKZ=7] | Q59: 1 | R59: 58.15 | T59: [KA=1;IK=4720100;EKZ=5] | U59: 1 | V59: 33.03
B60: [KA=1;IK=2120100;EKZ=0] | C60: 1 | D60: 1 - Mainz-Kastel | E60: 1 | F60: 60000 - allgemeiner Betrieb | G60: 60000 | H60: 10 - Mercedes-Benz | I60: 10 | J60: IST | K60: EXT | L60: 2024 | M60: 4 | N60: 667.18 | P60: [KA=1;IK=4728100;EKZ=5] | Q60: 2 | R60: 696 | T60: [KA=1;IK=4720100;EKZ=7] | U60: 8 | V60: 50.84
B61: [KA=1;IK=2120100;EKZ=0] | C61: 1 | D61: 1 - Mainz-Kastel | E61: 1 | F61: 60000 - allgemeiner Betrieb | G61: 60000 | H61: 10 - Mercedes-Benz | I61: 10 | J61: IST | K61: EXT | L61: 2024 | M61: 5 | N61: 454.81 | P61: [KA=1;IK=4728100;EKZ=7] | Q61: 1 | R61: 658.99 | T61: [KA=1;IK=4722100;EKZ=5] | U61: 4 | V61: 986.31
B62: [KA=1;IK=2120100;EKZ=0] | C62: 1 | D62: 1 - Mainz-Kastel | E62: 1 | F62: 60000 - allgemeiner Betrieb | G62: 60000 | H62: 10 - Mercedes-Benz | I62: 10 | J62: IST | K62: EXT | L62: 2024 | M62: 6 | N62: 687.35 | P62: [KA=1;IK=4729100;EKZ=7] | Q62: 24 | R62: 1644.43 | T62: [KA=1;IK=4722100;EKZ=7] | U62: 16 | V62: 934.6
B63: [KA=1;IK=2120100;EKZ=0] | C63: 1 | D63: 1 - Mainz-Kastel | E63: 1 | F63: 60000 - allgemeiner Betrieb | G63: 60000 | H63: 10 - Mercedes-Benz | I63: 10 | J63: IST | K63: EXT | L63: 2024 | M63: 7 | N63: 510.81 | P63: [KA=1;IK=4731100;EKZ=5] | Q63: 3 | R63: 1678.34 | T63: [KA=1;IK=4727100;EKZ=7] | U63: 8 | V63: 0
B64: [KA=1;IK=2120100;EKZ=0] | C64: 1 | D64: 1 - Mainz-Kastel | E64: 1 | F64: 60000 - allgemeiner Betrieb | G64: 60000 | H64: 10 - Mercedes-Benz | I64: 10 | J64: IST | K64: EXT | L64: 2024 | M64: 8 | N64: 383.13 | P64: [KA=1;IK=4731100;EKZ=7] | Q64: 1 | R64: 1293 | T64: [KA=1;IK=4728100;EKZ=5] | U64: 3 | V64: 1966.54
B65: [KA=1;IK=2120100;EKZ=0] | C65: 1 | D65: 1 - Mainz-Kastel | E65: 1 | F65: 60000 - allgemeiner Betrieb | G65: 60000 | H65: 10 - Mercedes-Benz | I65: 10 | J65: IST | K65: EXT | L65: 2024 | M65: 9 | N65: 248.57 | P65: [KA=1;IK=4740100;EKZ=7] | Q65: 16 | R65: 248.5 | T65: [KA=1;IK=4728100;EKZ=7] | U65: 16 | V65: 2728.99
B66: [KA=1;IK=2120100;EKZ=0] | C66: 1 | D66: 1 - Mainz-Kastel | E66: 1 | F66: 60000 - allgemeiner Betrieb | G66: 60000 | H66: 10 - Mercedes-Benz | I66: 10 | J66: IST | K66: EXT | L66: 2024 | M66: 10 | N66: 365.98 | P66: [KA=1;IK=4750100;EKZ=5] | Q66: 3 | R66: 2119.34 | T66: [KA=1;IK=4729100;EKZ=7] | U66: 24 | V66: 433.31
B67: [KA=1;IK=2120100;EKZ=0] | C67: 1 | D67: 1 - Mainz-Kastel | E67: 1 | F67: 60000 - allgemeiner Betrieb | G67: 60000 | H67: 10 - Mercedes-Benz | I67: 10 | J67: IST | K67: EXT | L67: 2024 | M67: 11 | N67: 382.31 | P67: [KA=1;IK=4750100;EKZ=7] | Q67: 3 | R67: 9000 | T67: [KA=1;IK=4731100;EKZ=5] | U67: 4 | V67: 2854.94
B68: [KA=1;IK=2120100;EKZ=0] | C68: 1 | D68: 1 - Mainz-Kastel | E68: 1 | F68: 111000 - Verkauf PKW | G68: 111000 | H68: 10 - Mercedes-Benz | I68: 10 | J68: IST | K68: EXT | L68: 2023 | M68: 1 | N68: 8.64 | P68: [KA=1;IK=4751100;EKZ=5] | Q68: 5 | R68: 4142.5 | T68: [KA=1;IK=4750100;EKZ=5] | U68: 2 | V68: 2380.92
B69: [KA=1;IK=2120100;EKZ=0] | C69: 1 | D69: 1 - Mainz-Kastel | E69: 1 | F69: 111000 - Verkauf PKW | G69: 111000 | H69: 10 - Mercedes-Benz | I69: 10 | J69: IST | K69: EXT | L69: 2023 | M69: 2 | N69: 36.04 | P69: [KA=1;IK=4751100;EKZ=7] | Q69: 26 | R69: 818.58 | T69: [KA=1;IK=4750100;EKZ=7] | U69: 24 | V69: 9000
B70: [KA=1;IK=2120100;EKZ=0] | C70: 1 | D70: 1 - Mainz-Kastel | E70: 1 | F70: 111000 - Verkauf PKW | G70: 111000 | H70: 10 - Mercedes-Benz | I70: 10 | J70: IST | K70: EXT | L70: 2023 | M70: 3 | N70: 46.65 | P70: [KA=1;IK=4753100;EKZ=5] | Q70: 3 | R70: 5006.3 | T70: [KA=1;IK=4751100;EKZ=5] | U70: 5 | V70: 910.21
B71: [KA=1;IK=2120100;EKZ=0] | C71: 1 | D71: 1 - Mainz-Kastel | E71: 1 | F71: 111000 - Verkauf PKW | G71: 111000 | H71: 10 - Mercedes-Benz | I71: 10 | J71: IST | K71: EXT | L71: 2023 | M71: 4 | N71: 45.67 | P71: [KA=1;IK=4773100;EKZ=7] | Q71: 1 | R71: 7700 | T71: [KA=1;IK=4751100;EKZ=7] | U71: 24 | V71: 880.27
B72: [KA=1;IK=2120100;EKZ=0] | C72: 1 | D72: 1 - Mainz-Kastel | E72: 1 | F72: 111000 - Verkauf PKW | G72: 111000 | H72: 10 - Mercedes-Benz | I72: 10 | J72: IST | K72: EXT | L72: 2023 | M72: 5 | N72: 46.46 | P72: [KA=1;IK=4780100;EKZ=5] | Q72: 3 | R72: 2561.18 | T72: [KA=1;IK=4753100;EKZ=5] | U72: 3 | V72: 2014.05
B73: [KA=1;IK=2120100;EKZ=0] | C73: 1 | D73: 1 - Mainz-Kastel | E73: 1 | F73: 111000 - Verkauf PKW | G73: 111000 | H73: 10 - Mercedes-Benz | I73: 10 | J73: IST | K73: EXT | L73: 2023 | M73: 6 | N73: 34.56 | P73: [KA=1;IK=4782100;EKZ=7] | Q73: 3 | R73: 2098.97 | T73: [KA=1;IK=4773100;EKZ=7] | U73: 16 | V73: -1440.4
B74: [KA=1;IK=2120100;EKZ=0] | C74: 1 | D74: 1 - Mainz-Kastel | E74: 1 | F74: 111000 - Verkauf PKW | G74: 111000 | H74: 10 - Mercedes-Benz | I74: 10 | J74: IST | K74: EXT | L74: 2023 | M74: 7 | N74: 28.78 | P74: [KA=1;IK=4783100;EKZ=5] | Q74: 3 | R74: 1174.29 | T74: [KA=1;IK=4780100;EKZ=5] | U74: 3 | V74: 6513.57
B75: [KA=1;IK=2120100;EKZ=0] | C75: 1 | D75: 1 - Mainz-Kastel | E75: 1 | F75: 111000 - Verkauf PKW | G75: 111000 | H75: 10 - Mercedes-Benz | I75: 10 | J75: IST | K75: EXT | L75: 2023 | M75: 8 | N75: 52.82 | P75: [KA=1;IK=4784100;EKZ=5] | Q75: 5 | R75: 2012.47 | T75: [KA=1;IK=4782100;EKZ=7] | U75: 24 | V75: 2073.17
B76: [KA=1;IK=2120100;EKZ=0] | C76: 1 | D76: 1 - Mainz-Kastel | E76: 1 | F76: 111000 - Verkauf PKW | G76: 111000 | H76: 10 - Mercedes-Benz | I76: 10 | J76: IST | K76: EXT | L76: 2023 | M76: 9 | N76: 33.7 | P76: [KA=1;IK=4784100;EKZ=7] | Q76: 3 | R76: 4786.27 | T76: [KA=1;IK=4783100;EKZ=5] | U76: 3 | V76: 835.04
B77: [KA=1;IK=2120100;EKZ=0] | C77: 1 | D77: 1 - Mainz-Kastel | E77: 1 | F77: 111000 - Verkauf PKW | G77: 111000 | H77: 10 - Mercedes-Benz | I77: 10 | J77: IST | K77: EXT | L77: 2023 | M77: 10 | N77: 37.7 | P77: [KA=1;IK=4800100;EKZ=0] | Q77: 21 | R77: 133753.98 | T77: [KA=1;IK=4784100;EKZ=5] | U77: 4 | V77: 1051.33
B78: [KA=1;IK=2120100;EKZ=0] | C78: 1 | D78: 1 - Mainz-Kastel | E78: 1 | F78: 111000 - Verkauf PKW | G78: 111000 | H78: 10 - Mercedes-Benz | I78: 10 | J78: IST | K78: EXT | L78: 2023 | M78: 11 | N78: 58.4 | P78: [KA=1;IK=4803100;EKZ=7] | Q78: 1 | R78: 2962.11 | T78: [KA=1;IK=4784100;EKZ=6] | U78: 4 | V78: 63.05
B79: [KA=1;IK=2120100;EKZ=0] | C79: 1 | D79: 1 - Mainz-Kastel | E79: 1 | F79: 111000 - Verkauf PKW | G79: 111000 | H79: 10 - Mercedes-Benz | I79: 10 | J79: IST | K79: EXT | L79: 2023 | M79: 12 | N79: 46.82 | P79: [KA=1;IK=4805100;EKZ=7] | Q79: 24 | R79: 12971.65 | T79: [KA=1;IK=4784100;EKZ=7] | U79: 24 | V79: 2703.41
B80: [KA=1;IK=2120100;EKZ=0] | C80: 1 | D80: 1 - Mainz-Kastel | E80: 1 | F80: 112000 - Verkauf PKW | G80: 112000 | H80: 10 - Mercedes-Benz | I80: 10 | J80: IST | K80: EXT | L80: 2023 | M80: 1 | N80: 17.28 | P80: [KA=1;IK=4807100;EKZ=7] | Q80: 8 | R80: 4559.41 | T80: [KA=1;IK=4800100;EKZ=0] | U80: 21 | V80: 133753.98
B81: [KA=1;IK=2120100;EKZ=0] | C81: 1 | D81: 1 - Mainz-Kastel | E81: 1 | F81: 112000 - Verkauf PKW | G81: 112000 | H81: 10 - Mercedes-Benz | I81: 10 | J81: IST | K81: EXT | L81: 2023 | M81: 2 | N81: 72.09 | P81: [KA=1;IK=4851100;EKZ=7] | Q81: 2 | R81: 13332.12 | T81: [KA=1;IK=4803100;EKZ=7] | U81: 8 | V81: 2962.11
B82: [KA=1;IK=2120100;EKZ=0] | C82: 1 | D82: 1 - Mainz-Kastel | E82: 1 | F82: 112000 - Verkauf PKW | G82: 112000 | H82: 10 - Mercedes-Benz | I82: 10 | J82: IST | K82: EXT | L82: 2023 | M82: 3 | N82: 93.29 | P82: [KA=1;IK=4852100;EKZ=7] | Q82: 3 | R82: 11431.27 | T82: [KA=1;IK=4805100;EKZ=7] | U82: 24 | V82: 13105.96
B83: [KA=1;IK=2120100;EKZ=0] | C83: 1 | D83: 1 - Mainz-Kastel | E83: 1 | F83: 112000 - Verkauf PKW | G83: 112000 | H83: 10 - Mercedes-Benz | I83: 10 | J83: IST | K83: EXT | L83: 2023 | M83: 4 | N83: 91.33 | P83: [KA=1;IK=4853100;EKZ=7] | Q83: 3 | R83: 2263.45 | T83: [KA=1;IK=4807100;EKZ=7] | U83: 56 | V83: 2519.17
B84: [KA=1;IK=2120100;EKZ=0] | C84: 1 | D84: 1 - Mainz-Kastel | E84: 1 | F84: 112000 - Verkauf PKW | G84: 112000 | H84: 10 - Mercedes-Benz | I84: 10 | J84: IST | K84: EXT | L84: 2023 | M84: 5 | N84: 92.91 | P84: [KA=1;IK=4860100;EKZ=7] | Q84: 2 | R84: 121.85 | T84: [KA=1;IK=4851100;EKZ=7] | U84: 16 | V84: 13039.01
B85: [KA=1;IK=2120100;EKZ=0] | C85: 1 | D85: 1 - Mainz-Kastel | E85: 1 | F85: 112000 - Verkauf PKW | G85: 112000 | H85: 10 - Mercedes-Benz | I85: 10 | J85: IST | K85: EXT | L85: 2023 | M85: 6 | N85: 69.12 | P85: [KA=1;IK=4864100;EKZ=7] | Q85: 3 | R85: 2515.74 | T85: [KA=1;IK=4852100;EKZ=7] | U85: 24 | V85: 9827.26
B86: [KA=1;IK=2120100;EKZ=0] | C86: 1 | D86: 1 - Mainz-Kastel | E86: 1 | F86: 112000 - Verkauf PKW | G86: 112000 | H86: 10 - Mercedes-Benz | I86: 10 | J86: IST | K86: EXT | L86: 2023 | M86: 7 | N86: 57.55 | P86: [KA=1;IK=4870100;EKZ=7] | Q86: 27 | R86: 1983 | T86: [KA=1;IK=4853100;EKZ=7] | U86: 16 | V86: 2486.76
B87: [KA=1;IK=2120100;EKZ=0] | C87: 1 | D87: 1 - Mainz-Kastel | E87: 1 | F87: 112000 - Verkauf PKW | G87: 112000 | H87: 10 - Mercedes-Benz | I87: 10 | J87: IST | K87: EXT | L87: 2023 | M87: 8 | N87: 105.65 | P87: [KA=1;IK=4871100;EKZ=7] | Q87: 3 | R87: 1720.19 | T87: [KA=1;IK=4860100;EKZ=5] | U87: 1 | V87: 15
B88: [KA=1;IK=2120100;EKZ=0] | C88: 1 | D88: 1 - Mainz-Kastel | E88: 1 | F88: 112000 - Verkauf PKW | G88: 112000 | H88: 10 - Mercedes-Benz | I88: 10 | J88: IST | K88: EXT | L88: 2023 | M88: 9 | N88: 67.4 | P88: [KA=1;IK=4871900;EKZ=5] | Q88: 3 | R88: 36.15 | T88: [KA=1;IK=4860100;EKZ=7] | U88: 16 | V88: 129.25
B89: [KA=1;IK=2120100;EKZ=0] | C89: 1 | D89: 1 - Mainz-Kastel | E89: 1 | F89: 112000 - Verkauf PKW | G89: 112000 | H89: 10 - Mercedes-Benz | I89: 10 | J89: IST | K89: EXT | L89: 2023 | M89: 10 | N89: 75.4 | P89: [KA=1;IK=4875100;EKZ=5] | Q89: 1 | R89: 230.6 | T89: [KA=1;IK=4864100;EKZ=7] | U89: 24 | V89: 2635.14
B90: [KA=1;IK=2120100;EKZ=0] | C90: 1 | D90: 1 - Mainz-Kastel | E90: 1 | F90: 112000 - Verkauf PKW | G90: 112000 | H90: 10 - Mercedes-Benz | I90: 10 | J90: IST | K90: EXT | L90: 2023 | M90: 11 | N90: 116.8 | P90: [KA=1;IK=4875100;EKZ=6] | Q90: 8 | R90: 1358.68 | T90: [KA=1;IK=4870100;EKZ=7] | U90: 48 | V90: 2128.17
B91: [KA=1;IK=2120100;EKZ=0] | C91: 1 | D91: 1 - Mainz-Kastel | E91: 1 | F91: 112000 - Verkauf PKW | G91: 112000 | H91: 10 - Mercedes-Benz | I91: 10 | J91: IST | K91: EXT | L91: 2023 | M91: 12 | N91: 93.63 | P91: [KA=1;IK=4875100;EKZ=7] | Q91: 26 | R91: 1552.62 | T91: [KA=1;IK=4871100;EKZ=7] | U91: 24 | V91: 1685.78
B92: [KA=1;IK=2120100;EKZ=0] | C92: 1 | D92: 1 - Mainz-Kastel | E92: 1 | F92: 121000 - Verkauf LKW | G92: 121000 | H92: 10 - Mercedes-Benz | I92: 10 | J92: IST | K92: EXT | L92: 2023 | M92: 1 | N92: 1.44 | P92: [KA=1;IK=4876100;EKZ=5] | Q92: 1 | R92: 68.04 | T92: [KA=1;IK=4871900;EKZ=5] | U92: 3 | V92: 31.65
B93: [KA=1;IK=2120100;EKZ=0] | C93: 1 | D93: 1 - Mainz-Kastel | E93: 1 | F93: 121000 - Verkauf LKW | G93: 121000 | H93: 10 - Mercedes-Benz | I93: 10 | J93: IST | K93: EXT | L93: 2023 | M93: 2 | N93: 6.01 | P93: [KA=1;IK=4876100;EKZ=7] | Q93: 10 | R93: 240.06 | T93: [KA=1;IK=4875100;EKZ=5] | U93: 2 | V93: 116.32
B94: [KA=1;IK=2120100;EKZ=0] | C94: 1 | D94: 1 - Mainz-Kastel | E94: 1 | F94: 121000 - Verkauf LKW | G94: 121000 | H94: 10 - Mercedes-Benz | I94: 10 | J94: IST | K94: EXT | L94: 2023 | M94: 3 | N94: 7.77 | P94: [KA=1;IK=4884100;EKZ=5] | Q94: 1 | R94: 359.06 | T94: [KA=1;IK=4875100;EKZ=6] | U94: 4 | V94: 218.85
B95: [KA=1;IK=2120100;EKZ=0] | C95: 1 | D95: 1 - Mainz-Kastel | E95: 1 | F95: 121000 - Verkauf LKW | G95: 121000 | H95: 10 - Mercedes-Benz | I95: 10 | J95: IST | K95: EXT | L95: 2023 | M95: 4 | N95: 7.61 | P95: [KA=1;IK=4885100;EKZ=7] | Q95: 2 | R95: 2169.69 | T95: [KA=1;IK=4875100;EKZ=7] | U95: 24 | V95: 2570.18
B96: [KA=1;IK=2120100;EKZ=0] | C96: 1 | D96: 1 - Mainz-Kastel | E96: 1 | F96: 121000 - Verkauf LKW | G96: 121000 | H96: 10 - Mercedes-Benz | I96: 10 | J96: IST | K96: EXT | L96: 2023 | M96: 5 | N96: 7.74 | P96: [KA=1;IK=4886100;EKZ=7] | Q96: 24 | R96: 17424.61 | T96: [KA=1;IK=4876100;EKZ=5] | U96: 1 | V96: 66.07
B97: [KA=1;IK=2120100;EKZ=0] | C97: 1 | D97: 1 - Mainz-Kastel | E97: 1 | F97: 121000 - Verkauf LKW | G97: 121000 | H97: 10 - Mercedes-Benz | I97: 10 | J97: IST | K97: EXT | L97: 2023 | M97: 6 | N97: 5.76 | P97: [KA=1;IK=4887100;EKZ=7] | Q97: 16 | R97: 318 | T97: [KA=1;IK=4876100;EKZ=7] | U97: 16 | V97: 388.32
B98: [KA=1;IK=2120100;EKZ=0] | C98: 1 | D98: 1 - Mainz-Kastel | E98: 1 | F98: 121000 - Verkauf LKW | G98: 121000 | H98: 10 - Mercedes-Benz | I98: 10 | J98: IST | K98: EXT | L98: 2023 | M98: 7 | N98: 4.8 | P98: [KA=1;IK=4888100;EKZ=5] | Q98: 3 | R98: 763.85 | T98: [KA=1;IK=4881100;EKZ=5] | U98: 1 | V98: 2
B99: [KA=1;IK=2120100;EKZ=0] | C99: 1 | D99: 1 - Mainz-Kastel | E99: 1 | F99: 121000 - Verkauf LKW | G99: 121000 | H99: 10 - Mercedes-Benz | I99: 10 | J99: IST | K99: EXT | L99: 2023 | M99: 8 | N99: 8.8 | P99: [KA=1;IK=4890100;EKZ=7] | Q99: 3 | R99: 1203 | T99: [KA=1;IK=4884100;EKZ=5] | U99: 3 | V99: 893.57
B100: [KA=1;IK=2120100;EKZ=0] | C100: 1 | D100: 1 - Mainz-Kastel | E100: 1 | F100: 121000 - Verkauf LKW | G100: 121000 | H100: 10 - Mercedes-Benz | I100: 10 | J100: IST | K100: EXT | L100: 2023 | M100: 9 | N100: 5.62 | P100: [KA=1;IK=4893100;EKZ=7] | Q100: 24 | R100: 14868.75 | T100: [KA=1;IK=4885100;EKZ=7] | U100: 16 | V100: 3655.5
B101: [KA=1;IK=2120100;EKZ=0] | C101: 1 | D101: 1 - Mainz-Kastel | E101: 1 | F101: 121000 - Verkauf LKW | G101: 121000 | H101: 10 - Mercedes-Benz | I101: 10 | J101: IST | K101: EXT | L101: 2023 | M101: 10 | N101: 6.28 | P101: [KA=1;IK=4895100;EKZ=7] | Q101: 3 | R101: 1090.11 | T101: [KA=1;IK=4886100;EKZ=7] | U101: 24 | V101: 20942.66
B102: [KA=1;IK=2120100;EKZ=0] | C102: 1 | D102: 1 - Mainz-Kastel | E102: 1 | F102: 121000 - Verkauf LKW | G102: 121000 | H102: 10 - Mercedes-Benz | I102: 10 | J102: IST | K102: EXT | L102: 2023 | M102: 11 | N102: 9.73 | P102: [KA=1;IK=4900100;EKZ=7] | Q102: 1 | R102: 198.13 | T102: [KA=1;IK=4887100;EKZ=7] | U102: 8 | V102: 223.95
B103: [KA=1;IK=2120100;EKZ=0] | C103: 1 | D103: 1 - Mainz-Kastel | E103: 1 | F103: 121000 - Verkauf LKW | G103: 121000 | H103: 10 - Mercedes-Benz | I103: 10 | J103: IST | K103: EXT | L103: 2023 | M103: 12 | N103: 7.8 | P103: [KA=1;IK=4902100;EKZ=7] | Q103: 16 | R103: 1349.73 | T103: [KA=1;IK=4888100;EKZ=5] | U103: 2 | V103: 531.9
B104: [KA=1;IK=2120100;EKZ=0] | C104: 1 | D104: 1 - Mainz-Kastel | E104: 1 | F104: 130000 - Verkauf TRAPO | G104: 130000 | H104: 10 - Mercedes-Benz | I104: 10 | J104: IST | K104: EXT | L104: 2023 | M104: 1 | N104: 1.44 | P104: [KA=1;IK=4910100;EKZ=7] | Q104: 1 | R104: 300 | T104: [KA=1;IK=4890100;EKZ=7] | U104: 16 | V104: 802
B105: [KA=1;IK=2120100;EKZ=0] | C105: 1 | D105: 1 - Mainz-Kastel | E105: 1 | F105: 130000 - Verkauf TRAPO | G105: 130000 | H105: 10 - Mercedes-Benz | I105: 10 | J105: IST | K105: EXT | L105: 2023 | M105: 2 | N105: 6.01 | P105: [KA=1;IK=4920100;EKZ=7] | Q105: 3 | R105: 766.61 | T105: [KA=1;IK=4893100;EKZ=5] | U105: 1 | V105: 15
B106: [KA=1;IK=2120100;EKZ=0] | C106: 1 | D106: 1 - Mainz-Kastel | E106: 1 | F106: 130000 - Verkauf TRAPO | G106: 130000 | H106: 10 - Mercedes-Benz | I106: 10 | J106: IST | K106: EXT | L106: 2023 | M106: 3 | N106: 7.77 | P106: [KA=1;IK=4925100;EKZ=5] | Q106: 2 | R106: 21.97 | T106: [KA=1;IK=4893100;EKZ=7] | U106: 24 | V106: 25294.55
B107: [KA=1;IK=2120100;EKZ=0] | C107: 1 | D107: 1 - Mainz-Kastel | E107: 1 | F107: 130000 - Verkauf TRAPO | G107: 130000 | H107: 10 - Mercedes-Benz | I107: 10 | J107: IST | K107: EXT | L107: 2023 | M107: 4 | N107: 7.61 | P107: [KA=1;IK=4925100;EKZ=7] | Q107: 3 | R107: 3830.28 | T107: [KA=1;IK=4895100;EKZ=7] | U107: 24 | V107: 1090.11
B108: [KA=1;IK=2120100;EKZ=0] | C108: 1 | D108: 1 - Mainz-Kastel | E108: 1 | F108: 130000 - Verkauf TRAPO | G108: 130000 | H108: 10 - Mercedes-Benz | I108: 10 | J108: IST | K108: EXT | L108: 2023 | M108: 5 | N108: 7.74 | P108: [KA=1;IK=4927100;EKZ=7] | Q108: 2 | R108: 16669.03 | T108: [KA=1;IK=4900100;EKZ=7] | U108: 16 | V108: 231.13
B109: [KA=1;IK=2120100;EKZ=0] | C109: 1 | D109: 1 - Mainz-Kastel | E109: 1 | F109: 130000 - Verkauf TRAPO | G109: 130000 | H109: 10 - Mercedes-Benz | I109: 10 | J109: IST | K109: EXT | L109: 2023 | M109: 6 | N109: 5.76 | P109: [KA=1;IK=4934100;EKZ=5] | Q109: 2 | R109: 1005.04 | T109: [KA=1;IK=4902100;EKZ=7] | U109: 24 | V109: 13386.46
B110: [KA=1;IK=2120100;EKZ=0] | C110: 1 | D110: 1 - Mainz-Kastel | E110: 1 | F110: 130000 - Verkauf TRAPO | G110: 130000 | H110: 10 - Mercedes-Benz | I110: 10 | J110: IST | K110: EXT | L110: 2023 | M110: 7 | N110: 4.8 | P110: [KA=1;IK=4934100;EKZ=7] | Q110: 3 | R110: 8361.98 | T110: [KA=1;IK=4910100;EKZ=7] | U110: 8 | V110: 300
B111: [KA=1;IK=2120100;EKZ=0] | C111: 1 | D111: 1 - Mainz-Kastel | E111: 1 | F111: 130000 - Verkauf TRAPO | G111: 130000 | H111: 10 - Mercedes-Benz | I111: 10 | J111: IST | K111: EXT | L111: 2023 | M111: 8 | N111: 8.8 | P111: [KA=1;IK=4936100;EKZ=7] | Q111: 3 | R111: 2125.93 | T111: [KA=1;IK=4911100;EKZ=5] | U111: 1 | V111: 187.2
B112: [KA=1;IK=2120100;EKZ=0] | C112: 1 | D112: 1 - Mainz-Kastel | E112: 1 | F112: 130000 - Verkauf TRAPO | G112: 130000 | H112: 10 - Mercedes-Benz | I112: 10 | J112: IST | K112: EXT | L112: 2023 | M112: 9 | N112: 5.62 | P112: [KA=1;IK=5001110;EKZ=0] | Q112: 3 | R112: 20598.18 | T112: [KA=1;IK=4911100;EKZ=7] | U112: 8 | V112: 335.34
B113: [KA=1;IK=2120100;EKZ=0] | C113: 1 | D113: 1 - Mainz-Kastel | E113: 1 | F113: 130000 - Verkauf TRAPO | G113: 130000 | H113: 10 - Mercedes-Benz | I113: 10 | J113: IST | K113: EXT | L113: 2023 | M113: 10 | N113: 6.28 | P113: [KA=1;IK=5010120;EKZ=0] | Q113: 1 | R113: 344.95 | T113: [KA=1;IK=4920100;EKZ=7] | U113: 24 | V113: 1371.4
B114: [KA=1;IK=2120100;EKZ=0] | C114: 1 | D114: 1 - Mainz-Kastel | E114: 1 | F114: 130000 - Verkauf TRAPO | G114: 130000 | H114: 10 - Mercedes-Benz | I114: 10 | J114: IST | K114: EXT | L114: 2023 | M114: 11 | N114: 9.73 | P114: [KA=1;IK=5060110;EKZ=0] | Q114: 3 | R114: 3219.87 | T114: [KA=1;IK=4925100;EKZ=5] | U114: 3 | V114: 109.72
B115: [KA=1;IK=2120100;EKZ=0] | C115: 1 | D115: 1 - Mainz-Kastel | E115: 1 | F115: 130000 - Verkauf TRAPO | G115: 130000 | H115: 10 - Mercedes-Benz | I115: 10 | J115: IST | K115: EXT | L115: 2023 | M115: 12 | N115: 7.8 | P115: [KA=1;IK=5430110;EKZ=0] | Q115: 3 | R115: 3502.95 | T115: [KA=1;IK=4925100;EKZ=7] | U115: 24 | V115: 4145.21
B116: [KA=1;IK=2120100;EKZ=0] | C116: 1 | D116: 1 - Mainz-Kastel | E116: 1 | F116: 211000 - Teile/Zubehör | G116: 211000 | H116: 10 - Mercedes-Benz | I116: 10 | J116: IST | K116: EXT | L116: 2023 | M116: 1 | N116: 21.6 | P116: [KA=1;IK=5750100;EKZ=5] | Q116: 3 | R116: 24273.55 | T116: [KA=1;IK=4927100;EKZ=7] | U116: 24 | V116: 14399.89
B117: [KA=1;IK=2120100;EKZ=0] | C117: 1 | D117: 1 - Mainz-Kastel | E117: 1 | F117: 211000 - Teile/Zubehör | G117: 211000 | H117: 10 - Mercedes-Benz | I117: 10 | J117: IST | K117: EXT | L117: 2023 | M117: 2 | N117: 90.11 | P117: [KA=1;IK=5750100;EKZ=7] | Q117: 3 | R117: 2977.21 | T117: [KA=1;IK=4934100;EKZ=5] | U117: 2 | V117: 625.21
B118: [KA=1;IK=2120100;EKZ=0] | C118: 1 | D118: 1 - Mainz-Kastel | E118: 1 | F118: 211000 - Teile/Zubehör | G118: 211000 | H118: 10 - Mercedes-Benz | I118: 10 | J118: IST | K118: EXT | L118: 2023 | M118: 3 | N118: 116.62 | P118: [KA=1;IK=6000110;EKZ=0] | Q118: 3 | R118: -497870 | T118: [KA=1;IK=4934100;EKZ=7] | U118: 24 | V118: 8664.36
B119: [KA=1;IK=2120100;EKZ=0] | C119: 1 | D119: 1 - Mainz-Kastel | E119: 1 | F119: 211000 - Teile/Zubehör | G119: 211000 | H119: 10 - Mercedes-Benz | I119: 10 | J119: IST | K119: EXT | L119: 2023 | M119: 4 | N119: 114.17 | P119: [KA=1;IK=6000120;EKZ=0] | Q119: 1 | R119: -50320 | T119: [KA=1;IK=4936100;EKZ=7] | U119: 24 | V119: 2860.95
B120: [KA=1;IK=2120100;EKZ=0] | C120: 1 | D120: 1 - Mainz-Kastel | E120: 1 | F120: 211000 - Teile/Zubehör | G120: 211000 | H120: 10 - Mercedes-Benz | I120: 10 | J120: IST | K120: EXT | L120: 2023 | M120: 5 | N120: 116.14 | P120: [KA=1;IK=6000130;EKZ=0] | Q120: 2 | R120: -68134 | T120: [KA=1;IK=5001110;EKZ=0] | U120: 5 | V120: 26249.15
B121: [KA=1;IK=2120100;EKZ=0] | C121: 1 | D121: 1 - Mainz-Kastel | E121: 1 | F121: 211000 - Teile/Zubehör | G121: 211000 | H121: 10 - Mercedes-Benz | I121: 10 | J121: IST | K121: EXT | L121: 2023 | M121: 6 | N121: 86.4 | P121: [KA=1;IK=6001120;EKZ=0] | Q121: 1 | R121: -27016 | T121: [KA=1;IK=5060110;EKZ=0] | U121: 2 | V121: 1493.68
B122: [KA=1;IK=2120100;EKZ=0] | C122: 1 | D122: 1 - Mainz-Kastel | E122: 1 | F122: 211000 - Teile/Zubehör | G122: 211000 | H122: 10 - Mercedes-Benz | I122: 10 | J122: IST | K122: EXT | L122: 2023 | M122: 7 | N122: 71.94 | P122: [KA=1;IK=6005120;EKZ=0] | Q122: 1 | R122: 27016 | T122: [KA=1;IK=5430110;EKZ=0] | U122: 3 | V122: 3921.67
B123: [KA=1;IK=2120100;EKZ=0] | C123: 1 | D123: 1 - Mainz-Kastel | E123: 1 | F123: 211000 - Teile/Zubehör | G123: 211000 | H123: 10 - Mercedes-Benz | I123: 10 | J123: IST | K123: EXT | L123: 2023 | M123: 8 | N123: 132.06 | P123: [KA=1;IK=6005130;EKZ=0] | Q123: 2 | R123: 20074.66 | T123: [KA=1;IK=5430140;EKZ=0] | U123: 2 | V123: 2355.31
B124: [KA=1;IK=2120100;EKZ=0] | C124: 1 | D124: 1 - Mainz-Kastel | E124: 1 | F124: 211000 - Teile/Zubehör | G124: 211000 | H124: 10 - Mercedes-Benz | I124: 10 | J124: IST | K124: EXT | L124: 2023 | M124: 9 | N124: 84.26 | P124: [KA=1;IK=6200110;EKZ=0] | Q124: 3 | R124: -12163.37 | T124: [KA=1;IK=5750100;EKZ=5] | U124: 3 | V124: 2038.23
B125: [KA=1;IK=2120100;EKZ=0] | C125: 1 | D125: 1 - Mainz-Kastel | E125: 1 | F125: 211000 - Teile/Zubehör | G125: 211000 | H125: 10 - Mercedes-Benz | I125: 10 | J125: IST | K125: EXT | L125: 2023 | M125: 10 | N125: 94.25 | P125: [KA=1;IK=6200140;EKZ=0] | Q125: 2 | R125: -6963.97 | T125: [KA=1;IK=5750100;EKZ=7] | U125: 24 | V125: 4676.63
B126: [KA=1;IK=2120100;EKZ=0] | C126: 1 | D126: 1 - Mainz-Kastel | E126: 1 | F126: 211000 - Teile/Zubehör | G126: 211000 | H126: 10 - Mercedes-Benz | I126: 10 | J126: IST | K126: EXT | L126: 2023 | M126: 11 | N126: 146 | P126: [KA=1;IK=6200940;EKZ=0] | Q126: 1 | R126: -5.25 | T126: [KA=1;IK=6000110;EKZ=0] | U126: 3 | V126: -598175
B127: [KA=1;IK=2120100;EKZ=0] | C127: 1 | D127: 1 - Mainz-Kastel | E127: 1 | F127: 211000 - Teile/Zubehör | G127: 211000 | H127: 10 - Mercedes-Benz | I127: 10 | J127: IST | K127: EXT | L127: 2023 | M127: 12 | N127: 117.04 | P127: [KA=1;IK=6205110;EKZ=0] | Q127: 1 | R127: 194.17 | T127: [KA=1;IK=6000130;EKZ=0] | U127: 2 | V127: -102617
B128: [KA=1;IK=2120100;EKZ=0] | C128: 1 | D128: 1 - Mainz-Kastel | E128: 1 | F128: 212000 - Teile/Zubehör | G128: 212000 | H128: 10 - Mercedes-Benz | I128: 10 | J128: IST | K128: EXT | L128: 2023 | M128: 1 | N128: 7.2 | P128: [KA=1;IK=6225140;EKZ=0] | Q128: 3 | R128: 757.87 | T128: [KA=1;IK=6005130;EKZ=0] | U128: 2 | V128: 15935
B129: [KA=1;IK=2120100;EKZ=0] | C129: 1 | D129: 1 - Mainz-Kastel | E129: 1 | F129: 212000 - Teile/Zubehör | G129: 212000 | H129: 10 - Mercedes-Benz | I129: 10 | J129: IST | K129: EXT | L129: 2023 | M129: 2 | N129: 30.04 | P129: [KA=1;IK=6230110;EKZ=0] | Q129: 1 | R129: -122.26 | T129: [KA=1;IK=6200110;EKZ=0] | U129: 3 | V129: -8302.63
B130: [KA=1;IK=2120100;EKZ=0] | C130: 1 | D130: 1 - Mainz-Kastel | E130: 1 | F130: 212000 - Teile/Zubehör | G130: 212000 | H130: 10 - Mercedes-Benz | I130: 10 | J130: IST | K130: EXT | L130: 2023 | M130: 3 | N130: 38.87 | P130: [KA=1;IK=6240110;EKZ=0] | Q130: 3 | R130: -1434.57 | T130: [KA=1;IK=6200140;EKZ=0] | U130: 3 | V130: -946.99
B131: [KA=1;IK=2120100;EKZ=0] | C131: 1 | D131: 1 - Mainz-Kastel | E131: 1 | F131: 212000 - Teile/Zubehör | G131: 212000 | H131: 10 - Mercedes-Benz | I131: 10 | J131: IST | K131: EXT | L131: 2023 | M131: 4 | N131: 38.06 | P131: [KA=1;IK=6250110;EKZ=0] | Q131: 2 | R131: -3080.82 | T131: [KA=1;IK=6200940;EKZ=0] | U131: 2 | V131: -56.21
B132: [KA=1;IK=2120100;EKZ=0] | C132: 1 | D132: 1 - Mainz-Kastel | E132: 1 | F132: 212000 - Teile/Zubehör | G132: 212000 | H132: 10 - Mercedes-Benz | I132: 10 | J132: IST | K132: EXT | L132: 2023 | M132: 5 | N132: 38.71 | P132: [KA=1;IK=6260110;EKZ=0] | Q132: 3 | R132: -1533.06 | T132: [KA=1;IK=6225140;EKZ=0] | U132: 3 | V132: 602.29
B133: [KA=1;IK=2120100;EKZ=0] | C133: 1 | D133: 1 - Mainz-Kastel | E133: 1 | F133: 212000 - Teile/Zubehör | G133: 212000 | H133: 10 - Mercedes-Benz | I133: 10 | J133: IST | K133: EXT | L133: 2023 | M133: 6 | N133: 28.8 | P133: [KA=1;IK=6260140;EKZ=0] | Q133: 1 | R133: -71.43 | T133: [KA=1;IK=6230110;EKZ=0] | U133: 2 | V133: -944.49
B134: [KA=1;IK=2120100;EKZ=0] | C134: 1 | D134: 1 - Mainz-Kastel | E134: 1 | F134: 212000 - Teile/Zubehör | G134: 212000 | H134: 10 - Mercedes-Benz | I134: 10 | J134: IST | K134: EXT | L134: 2023 | M134: 7 | N134: 23.98 | P134: [KA=1;IK=6290110;EKZ=0] | Q134: 1 | R134: -137.5 | T134: [KA=1;IK=6240110;EKZ=0] | U134: 3 | V134: -1661.42
B135: [KA=1;IK=2120100;EKZ=0] | C135: 1 | D135: 1 - Mainz-Kastel | E135: 1 | F135: 212000 - Teile/Zubehör | G135: 212000 | H135: 10 - Mercedes-Benz | I135: 10 | J135: IST | K135: EXT | L135: 2023 | M135: 8 | N135: 44.02 | P135: [KA=1;IK=6400110;EKZ=0] | Q135: 5 | R135: -25007.28 | T135: [KA=1;IK=6240140;EKZ=0] | U135: 1 | V135: -65.55
B136: [KA=1;IK=2120100;EKZ=0] | C136: 1 | D136: 1 - Mainz-Kastel | E136: 1 | F136: 212000 - Teile/Zubehör | G136: 212000 | H136: 10 - Mercedes-Benz | I136: 10 | J136: IST | K136: EXT | L136: 2023 | M136: 9 | N136: 28.08 | P136: [KA=1;IK=6400140;EKZ=0] | Q136: 2 | R136: -4475.08 | T136: [KA=1;IK=6250110;EKZ=0] | U136: 3 | V136: -8060
B137: [KA=1;IK=2120100;EKZ=0] | C137: 1 | D137: 1 - Mainz-Kastel | E137: 1 | F137: 212000 - Teile/Zubehör | G137: 212000 | H137: 10 - Mercedes-Benz | I137: 10 | J137: IST | K137: EXT | L137: 2023 | M137: 10 | N137: 31.42 | P137: [KA=1;IK=6400940;EKZ=0] | Q137: 1 | R137: -660 | T137: [KA=1;IK=6260110;EKZ=0] | U137: 3 | V137: -689.91
B138: [KA=1;IK=2120100;EKZ=0] | C138: 1 | D138: 1 - Mainz-Kastel | E138: 1 | F138: 212000 - Teile/Zubehör | G138: 212000 | H138: 10 - Mercedes-Benz | I138: 10 | J138: IST | K138: EXT | L138: 2023 | M138: 11 | N138: 48.67 | P138: [KA=1;IK=6430110;EKZ=0] | Q138: 3 | R138: -14024.92 | T138: [KA=1;IK=6260140;EKZ=0] | U138: 1 | V138: -271.5
B139: [KA=1;IK=2120100;EKZ=0] | C139: 1 | D139: 1 - Mainz-Kastel | E139: 1 | F139: 212000 - Teile/Zubehör | G139: 212000 | H139: 10 - Mercedes-Benz | I139: 10 | J139: IST | K139: EXT | L139: 2023 | M139: 12 | N139: 39.01 | P139: [KA=1;IK=6430140;EKZ=0] | Q139: 1 | R139: -37.7 | T139: [KA=1;IK=6290110;EKZ=0] | U139: 1 | V139: -21
B140: [KA=1;IK=2120100;EKZ=0] | C140: 1 | D140: 1 - Mainz-Kastel | E140: 1 | F140: 222000 - Wst. PKW | G140: 222000 | H140: 10 - Mercedes-Benz | I140: 10 | J140: IST | K140: EXT | L140: 2023 | M140: 1 | N140: 23.04 | P140: [KA=1;IK=6430900;EKZ=0] | Q140: 1 | R140: -163.02 | T140: [KA=1;IK=6400110;EKZ=0] | U140: 3 | V140: -18761.75
B141: [KA=1;IK=2120100;EKZ=0] | C141: 1 | D141: 1 - Mainz-Kastel | E141: 1 | F141: 222000 - Wst. PKW | G141: 222000 | H141: 10 - Mercedes-Benz | I141: 10 | J141: IST | K141: EXT | L141: 2023 | M141: 2 | N141: 96.12 | P141: [KA=1;IK=6430910;EKZ=0] | Q141: 1 | R141: -19.2 | T141: [KA=1;IK=6400140;EKZ=0] | U141: 3 | V141: -2013.35
B142: [KA=1;IK=2120100;EKZ=0] | C142: 1 | D142: 1 - Mainz-Kastel | E142: 1 | F142: 222000 - Wst. PKW | G142: 222000 | H142: 10 - Mercedes-Benz | I142: 10 | J142: IST | K142: EXT | L142: 2023 | M142: 3 | N142: 124.39 | P142: [KA=1;IK=6495110;EKZ=0] | Q142: 3 | R142: 802.49 | T142: [KA=1;IK=6400940;EKZ=0] | U142: 2 | V142: -1006.94
B143: [KA=1;IK=2120100;EKZ=0] | C143: 1 | D143: 1 - Mainz-Kastel | E143: 1 | F143: 222000 - Wst. PKW | G143: 222000 | H143: 10 - Mercedes-Benz | I143: 10 | J143: IST | K143: EXT | L143: 2023 | M143: 4 | N143: 121.78 | P143: [KA=1;IK=6988100;EKZ=0] | Q143: 3 | R143: 12375.24 | T143: [KA=1;IK=6430110;EKZ=0] | U143: 3 | V143: -11710.46
B144: [KA=1;IK=2120100;EKZ=0] | C144: 1 | D144: 1 - Mainz-Kastel | E144: 1 | F144: 222000 - Wst. PKW | G144: 222000 | H144: 10 - Mercedes-Benz | I144: 10 | J144: IST | K144: EXT | L144: 2023 | M144: 5 | N144: 123.88 | P144: [KA=1;IK=7030110;EKZ=0] | Q144: 3 | R144: 799922.4 | T144: [KA=1;IK=6430140;EKZ=0] | U144: 1 | V144: -8.5
B145: [KA=1;IK=2120100;EKZ=0] | C145: 1 | D145: 1 - Mainz-Kastel | E145: 1 | F145: 222000 - Wst. PKW | G145: 222000 | H145: 10 - Mercedes-Benz | I145: 10 | J145: IST | K145: EXT | L145: 2023 | M145: 6 | N145: 92.16 | P145: [KA=1;IK=7030910;EKZ=0] | Q145: 1 | R145: 15172.9 | T145: [KA=1;IK=6430940;EKZ=0] | U145: 1 | V145: -308.32
B146: [KA=1;IK=2120100;EKZ=0] | C146: 1 | D146: 1 - Mainz-Kastel | E146: 1 | F146: 222000 - Wst. PKW | G146: 222000 | H146: 10 - Mercedes-Benz | I146: 10 | J146: IST | K146: EXT | L146: 2023 | M146: 7 | N146: 76.73 | P146: [KA=1;IK=7060110;EKZ=0] | Q146: 1 | R146: 346.19 | T146: [KA=1;IK=6435110;EKZ=0] | U146: 1 | V146: -44.54
B147: [KA=1;IK=2120100;EKZ=0] | C147: 1 | D147: 1 - Mainz-Kastel | E147: 1 | F147: 222000 - Wst. PKW | G147: 222000 | H147: 10 - Mercedes-Benz | I147: 10 | J147: IST | K147: EXT | L147: 2023 | M147: 8 | N147: 140.86 | P147: [KA=1;IK=7200110;EKZ=0] | Q147: 3 | R147: 93109.39 | T147: [KA=1;IK=6460110;EKZ=0] | U147: 1 | V147: -406.16
B148: [KA=1;IK=2120100;EKZ=0] | C148: 1 | D148: 1 - Mainz-Kastel | E148: 1 | F148: 222000 - Wst. PKW | G148: 222000 | H148: 10 - Mercedes-Benz | I148: 10 | J148: IST | K148: EXT | L148: 2023 | M148: 9 | N148: 89.87 | P148: [KA=1;IK=7200140;EKZ=0] | Q148: 3 | R148: 117417.83 | T148: [KA=1;IK=6495110;EKZ=0] | U148: 3 | V148: 1304.71
B149: [KA=1;IK=2120100;EKZ=0] | C149: 1 | D149: 1 - Mainz-Kastel | E149: 1 | F149: 222000 - Wst. PKW | G149: 222000 | H149: 10 - Mercedes-Benz | I149: 10 | J149: IST | K149: EXT | L149: 2023 | M149: 10 | N149: 100.54 | P149: [KA=1;IK=7200910;EKZ=0] | Q149: 1 | R149: 2.48 | T149: [KA=1;IK=6988100;EKZ=0] | U149: 10 | V149: 11002.72
B150: [KA=1;IK=2120100;EKZ=0] | C150: 1 | D150: 1 - Mainz-Kastel | E150: 1 | F150: 222000 - Wst. PKW | G150: 222000 | H150: 10 - Mercedes-Benz | I150: 10 | J150: IST | K150: EXT | L150: 2023 | M150: 11 | N150: 155.74 | P150: [KA=1;IK=7200940;EKZ=0] | Q150: 3 | R150: 36149.75 | T150: [KA=1;IK=7030110;EKZ=0] | U150: 3 | V150: 1044151.88
B151: [KA=1;IK=2120100;EKZ=0] | C151: 1 | D151: 1 - Mainz-Kastel | E151: 1 | F151: 222000 - Wst. PKW | G151: 222000 | H151: 10 - Mercedes-Benz | I151: 10 | J151: IST | K151: EXT | L151: 2023 | M151: 12 | N151: 124.84 | P151: [KA=1;IK=7201100;EKZ=0] | Q151: 3 | R151: 182580.84 | T151: [KA=1;IK=7030910;EKZ=0] | U151: 1 | V151: 17000
B152: [KA=1;IK=2120100;EKZ=0] | C152: 1 | D152: 1 - Mainz-Kastel | E152: 1 | F152: 223000 - Wst. LKW | G152: 223000 | H152: 10 - Mercedes-Benz | I152: 10 | J152: IST | K152: EXT | L152: 2023 | M152: 1 | N152: 34.58 | P152: [KA=1;IK=7202110;EKZ=0] | Q152: 3 | R152: 23882.74 | T152: [KA=1;IK=7060110;EKZ=0] | U152: 3 | V152: 384.39
B153: [KA=1;IK=2120100;EKZ=0] | C153: 1 | D153: 1 - Mainz-Kastel | E153: 1 | F153: 223000 - Wst. LKW | G153: 223000 | H153: 10 - Mercedes-Benz | I153: 10 | J153: IST | K153: EXT | L153: 2023 | M153: 2 | N153: 144.16 | P153: [KA=1;IK=7202140;EKZ=0] | Q153: 3 | R153: 25439.75 | T153: [KA=1;IK=7200110;EKZ=0] | U153: 3 | V153: 85540.84
B154: [KA=1;IK=2120100;EKZ=0] | C154: 1 | D154: 1 - Mainz-Kastel | E154: 1 | F154: 223000 - Wst. LKW | G154: 223000 | H154: 10 - Mercedes-Benz | I154: 10 | J154: IST | K154: EXT | L154: 2023 | M154: 3 | N154: 186.6 | P154: [KA=1;IK=7203110;EKZ=0] | Q154: 3 | R154: 7473.02 | T154: [KA=1;IK=7200140;EKZ=0] | U154: 3 | V154: 114085.32
B155: [KA=1;IK=2120100;EKZ=0] | C155: 1 | D155: 1 - Mainz-Kastel | E155: 1 | F155: 223000 - Wst. LKW | G155: 223000 | H155: 10 - Mercedes-Benz | I155: 10 | J155: IST | K155: EXT | L155: 2023 | M155: 4 | N155: 182.66 | P155: [KA=1;IK=7203140;EKZ=0] | Q155: 2 | R155: 5893.78 | T155: [KA=1;IK=7200910;EKZ=0] | U155: 2 | V155: 89.5
B156: [KA=1;IK=2120100;EKZ=0] | C156: 1 | D156: 1 - Mainz-Kastel | E156: 1 | F156: 223000 - Wst. LKW | G156: 223000 | H156: 10 - Mercedes-Benz | I156: 10 | J156: IST | K156: EXT | L156: 2023 | M156: 5 | N156: 185.82 | P156: [KA=1;IK=7203940;EKZ=0] | Q156: 1 | R156: 4.2 | T156: [KA=1;IK=7200940;EKZ=0] | U156: 3 | V156: 20367.5
B157: [KA=1;IK=2120100;EKZ=0] | C157: 1 | D157: 1 - Mainz-Kastel | E157: 1 | F157: 223000 - Wst. LKW | G157: 223000 | H157: 10 - Mercedes-Benz | I157: 10 | J157: IST | K157: EXT | L157: 2023 | M157: 6 | N157: 138.26 | P157: [KA=1;IK=7211100;EKZ=0] | Q157: 1 | R157: 3138.54 | T157: [KA=1;IK=7201100;EKZ=0] | U157: 3 | V157: 149112.61
B158: [KA=1;IK=2120100;EKZ=0] | C158: 1 | D158: 1 - Mainz-Kastel | E158: 1 | F158: 223000 - Wst. LKW | G158: 223000 | H158: 10 - Mercedes-Benz | I158: 10 | J158: IST | K158: EXT | L158: 2023 | M158: 7 | N158: 115.09 | P158: [KA=1;IK=7220140;EKZ=0] | Q158: 2 | R158: 3994.55 | T158: [KA=1;IK=7202110;EKZ=0] | U158: 3 | V158: 20962.62
B159: [KA=1;IK=2120100;EKZ=0] | C159: 1 | D159: 1 - Mainz-Kastel | E159: 1 | F159: 223000 - Wst. LKW | G159: 223000 | H159: 10 - Mercedes-Benz | I159: 10 | J159: IST | K159: EXT | L159: 2023 | M159: 8 | N159: 211.3 | P159: [KA=1;IK=7230110;EKZ=0] | Q159: 3 | R159: 7559.12 | T159: [KA=1;IK=7202140;EKZ=0] | U159: 3 | V159: 19905.97
B160: [KA=1;IK=2120100;EKZ=0] | C160: 1 | D160: 1 - Mainz-Kastel | E160: 1 | F160: 223000 - Wst. LKW | G160: 223000 | H160: 10 - Mercedes-Benz | I160: 10 | J160: IST | K160: EXT | L160: 2023 | M160: 9 | N160: 134.81 | P160: [KA=1;IK=7230140;EKZ=0] | Q160: 3 | R160: 10377.56 | T160: [KA=1;IK=7203110;EKZ=0] | U160: 3 | V160: 5111.52
B161: [KA=1;IK=2120100;EKZ=0] | C161: 1 | D161: 1 - Mainz-Kastel | E161: 1 | F161: 223000 - Wst. LKW | G161: 223000 | H161: 10 - Mercedes-Benz | I161: 10 | J161: IST | K161: EXT | L161: 2023 | M161: 10 | N161: 150.82 | P161: [KA=1;IK=7231100;EKZ=0] | Q161: 3 | R161: 7263.43 | T161: [KA=1;IK=7203140;EKZ=0] | U161: 3 | V161: 630.19
B162: [KA=1;IK=2120100;EKZ=0] | C162: 1 | D162: 1 - Mainz-Kastel | E162: 1 | F162: 223000 - Wst. LKW | G162: 223000 | H162: 10 - Mercedes-Benz | I162: 10 | J162: IST | K162: EXT | L162: 2023 | M162: 11 | N162: 233.61 | P162: [KA=1;IK=7232110;EKZ=0] | Q162: 3 | R162: 4095.61 | T162: [KA=1;IK=7203940;EKZ=0] | U162: 2 | V162: 38.68
B163: [KA=1;IK=2120100;EKZ=0] | C163: 1 | D163: 1 - Mainz-Kastel | E163: 1 | F163: 223000 - Wst. LKW | G163: 223000 | H163: 10 - Mercedes-Benz | I163: 10 | J163: IST | K163: EXT | L163: 2023 | M163: 12 | N163: 187.28 | P163: [KA=1;IK=7232140;EKZ=0] | Q163: 3 | R163: 1964.34 | T163: [KA=1;IK=7210110;EKZ=0] | U163: 1 | V163: 13109.1
B164: [KA=1;IK=2140100;EKZ=0] | C164: 1 | D164: 1 - Mainz-Kastel | E164: 1 | F164: 60000 - allgemeiner Betrieb | G164: 60000 | H164: 10 - Mercedes-Benz | I164: 10 | J164: IST | K164: EXT | L164: 2024 | M164: 1 | N164: 176.08 | P164: [KA=1;IK=7233110;EKZ=0] | Q164: 1 | R164: 72.13 | T164: [KA=1;IK=7210140;EKZ=0] | U164: 1 | V164: 7777.44
B165: [KA=1;IK=2140100;EKZ=0] | C165: 1 | D165: 1 - Mainz-Kastel | E165: 1 | F165: 60000 - allgemeiner Betrieb | G165: 60000 | H165: 10 - Mercedes-Benz | I165: 10 | J165: IST | K165: EXT | L165: 2024 | M165: 2 | N165: 419.1 | P165: [KA=1;IK=7240110;EKZ=0] | Q165: 3 | R165: 16476.31 | T165: [KA=1;IK=7220110;EKZ=0] | U165: 1 | V165: 1988.49
B166: [KA=1;IK=2140100;EKZ=0] | C166: 1 | D166: 1 - Mainz-Kastel | E166: 1 | F166: 60000 - allgemeiner Betrieb | G166: 60000 | H166: 10 - Mercedes-Benz | I166: 10 | J166: IST | K166: EXT | L166: 2024 | M166: 3 | N166: 481.5 | P166: [KA=1;IK=7240140;EKZ=0] | Q166: 3 | R166: 11277.95 | T166: [KA=1;IK=7222110;EKZ=0] | U166: 1 | V166: 2197.81
B167: [KA=1;IK=2140100;EKZ=0] | C167: 1 | D167: 1 - Mainz-Kastel | E167: 1 | F167: 60000 - allgemeiner Betrieb | G167: 60000 | H167: 10 - Mercedes-Benz | I167: 10 | J167: IST | K167: EXT | L167: 2024 | M167: 4 | N167: 387.75 | P167: [KA=1;IK=7240940;EKZ=0] | Q167: 3 | R167: 127.22 | T167: [KA=1;IK=7222140;EKZ=0] | U167: 1 | V167: 2514.08
B168: [KA=1;IK=2140100;EKZ=0] | C168: 1 | D168: 1 - Mainz-Kastel | E168: 1 | F168: 60000 - allgemeiner Betrieb | G168: 60000 | H168: 10 - Mercedes-Benz | I168: 10 | J168: IST | K168: EXT | L168: 2024 | M168: 5 | N168: 461.65 | P168: [KA=1;IK=7241100;EKZ=0] | Q168: 3 | R168: 644.45 | T168: [KA=1;IK=7230110;EKZ=0] | U168: 3 | V168: 8160.94
B169: [KA=1;IK=2140100;EKZ=0] | C169: 1 | D169: 1 - Mainz-Kastel | E169: 1 | F169: 60000 - allgemeiner Betrieb | G169: 60000 | H169: 10 - Mercedes-Benz | I169: 10 | J169: IST | K169: EXT | L169: 2024 | M169: 6 | N169: 507.95 | P169: [KA=1;IK=7242110;EKZ=0] | Q169: 1 | R169: 54.66 | T169: [KA=1;IK=7230140;EKZ=0] | U169: 3 | V169: 28127.1
B170: [KA=1;IK=2140100;EKZ=0] | C170: 1 | D170: 1 - Mainz-Kastel | E170: 1 | F170: 60000 - allgemeiner Betrieb | G170: 60000 | H170: 10 - Mercedes-Benz | I170: 10 | J170: IST | K170: EXT | L170: 2024 | M170: 7 | N170: 447.1 | P170: [KA=1;IK=7242140;EKZ=0] | Q170: 3 | R170: 50.03 | T170: [KA=1;IK=7231100;EKZ=0] | U170: 3 | V170: 9957.18
B171: [KA=1;IK=2140100;EKZ=0] | C171: 1 | D171: 1 - Mainz-Kastel | E171: 1 | F171: 60000 - allgemeiner Betrieb | G171: 60000 | H171: 10 - Mercedes-Benz | I171: 10 | J171: IST | K171: EXT | L171: 2024 | M171: 8 | N171: 503.95 | P171: [KA=1;IK=7243110;EKZ=0] | Q171: 3 | R171: 368 | T171: [KA=1;IK=7232110;EKZ=0] | U171: 3 | V171: 3557.35
B172: [KA=1;IK=2140100;EKZ=0] | C172: 1 | D172: 1 - Mainz-Kastel | E172: 1 | F172: 60000 - allgemeiner Betrieb | G172: 60000 | H172: 10 - Mercedes-Benz | I172: 10 | J172: IST | K172: EXT | L172: 2024 | M172: 9 | N172: 482.9 | P172: [KA=1;IK=7250110;EKZ=0] | Q172: 3 | R172: 11418.47 | T172: [KA=1;IK=7232140;EKZ=0] | U172: 3 | V172: 6698.52
B173: [KA=1;IK=2140100;EKZ=0] | C173: 1 | D173: 1 - Mainz-Kastel | E173: 1 | F173: 60000 - allgemeiner Betrieb | G173: 60000 | H173: 10 - Mercedes-Benz | I173: 10 | J173: IST | K173: EXT | L173: 2024 | M173: 10 | N173: 382.65 | P173: [KA=1;IK=7250140;EKZ=0] | Q173: 3 | R173: 6553.26 | T173: [KA=1;IK=7233110;EKZ=0] | U173: 2 | V173: 675.2
B174: [KA=1;IK=2140100;EKZ=0] | C174: 1 | D174: 1 - Mainz-Kastel | E174: 1 | F174: 60000 - allgemeiner Betrieb | G174: 60000 | H174: 10 - Mercedes-Benz | I174: 10 | J174: IST | K174: EXT | L174: 2024 | M174: 11 | N174: 369.5 | P174: [KA=1;IK=7250940;EKZ=0] | Q174: 2 | R174: 603.61 | T174: [KA=1;IK=7240110;EKZ=0] | U174: 3 | V174: 8458.11
B175: [KA=1;IK=2140100;EKZ=0] | C175: 1 | D175: 1 - Mainz-Kastel | E175: 1 | F175: 111000 - Verkauf PKW | G175: 111000 | H175: 10 - Mercedes-Benz | I175: 10 | J175: IST | K175: EXT | L175: 2023 | M175: 1 | N175: 13.49 | P175: [KA=1;IK=7251100;EKZ=0] | Q175: 3 | R175: 2378.45 | T175: [KA=1;IK=7240140;EKZ=0] | U175: 3 | V175: 11716.69
B176: [KA=1;IK=2140100;EKZ=0] | C176: 1 | D176: 1 - Mainz-Kastel | E176: 1 | F176: 111000 - Verkauf PKW | G176: 111000 | H176: 10 - Mercedes-Benz | I176: 10 | J176: IST | K176: EXT | L176: 2023 | M176: 2 | N176: 51.9 | P176: [KA=1;IK=7253110;EKZ=0] | Q176: 2 | R176: 2575.4 | T176: [KA=1;IK=7240910;EKZ=0] | U176: 1 | V176: 14.5
B177: [KA=1;IK=2140100;EKZ=0] | C177: 1 | D177: 1 - Mainz-Kastel | E177: 1 | F177: 111000 - Verkauf PKW | G177: 111000 | H177: 10 - Mercedes-Benz | I177: 10 | J177: IST | K177: EXT | L177: 2023 | M177: 3 | N177: 10.96 | P177: [KA=1;IK=7260110;EKZ=0] | Q177: 3 | R177: 1155.81 | T177: [KA=1;IK=7240940;EKZ=0] | U177: 3 | V177: 327.85
B178: [KA=1;IK=2140100;EKZ=0] | C178: 1 | D178: 1 - Mainz-Kastel | E178: 1 | F178: 111000 - Verkauf PKW | G178: 111000 | H178: 10 - Mercedes-Benz | I178: 10 | J178: IST | K178: EXT | L178: 2023 | M178: 4 | N178: 30.68 | P178: [KA=1;IK=7260140;EKZ=0] | Q178: 3 | R178: 477.55 | T178: [KA=1;IK=7241100;EKZ=0] | U178: 3 | V178: 1040.54
B179: [KA=1;IK=2140100;EKZ=0] | C179: 1 | D179: 1 - Mainz-Kastel | E179: 1 | F179: 111000 - Verkauf PKW | G179: 111000 | H179: 10 - Mercedes-Benz | I179: 10 | J179: IST | K179: EXT | L179: 2023 | M179: 5 | N179: 32.54 | P179: [KA=1;IK=7260940;EKZ=0] | Q179: 3 | R179: 619.33 | T179: [KA=1;IK=7242110;EKZ=0] | U179: 3 | V179: 170
B180: [KA=1;IK=2140100;EKZ=0] | C180: 1 | D180: 1 - Mainz-Kastel | E180: 1 | F180: 111000 - Verkauf PKW | G180: 111000 | H180: 10 - Mercedes-Benz | I180: 10 | J180: IST | K180: EXT | L180: 2023 | M180: 6 | N180: 35.88 | P180: [KA=1;IK=7261100;EKZ=0] | Q180: 3 | R180: 5196.98 | T180: [KA=1;IK=7242140;EKZ=0] | U180: 3 | V180: 140.77
B181: [KA=1;IK=2140100;EKZ=0] | C181: 1 | D181: 1 - Mainz-Kastel | E181: 1 | F181: 111000 - Verkauf PKW | G181: 111000 | H181: 10 - Mercedes-Benz | I181: 10 | J181: IST | K181: EXT | L181: 2023 | M181: 7 | N181: 29.29 | P181: [KA=1;IK=7262110;EKZ=0] | Q181: 2 | R181: 206.31 | T181: [KA=1;IK=7243110;EKZ=0] | U181: 3 | V181: 366.43
B182: [KA=1;IK=2140100;EKZ=0] | C182: 1 | D182: 1 - Mainz-Kastel | E182: 1 | F182: 111000 - Verkauf PKW | G182: 111000 | H182: 10 - Mercedes-Benz | I182: 10 | J182: IST | K182: EXT | L182: 2023 | M182: 8 | N182: 30.83 | P182: [KA=1;IK=7262140;EKZ=0] | Q182: 1 | R182: 1.98 | T182: [KA=1;IK=7243140;EKZ=0] | U182: 1 | V182: 21.28
B183: [KA=1;IK=2140100;EKZ=0] | C183: 1 | D183: 1 - Mainz-Kastel | E183: 1 | F183: 111000 - Verkauf PKW | G183: 111000 | H183: 10 - Mercedes-Benz | I183: 10 | J183: IST | K183: EXT | L183: 2023 | M183: 9 | N183: 36.48 | P183: [KA=1;IK=7263110;EKZ=0] | Q183: 3 | R183: 1126.19 | T183: [KA=1;IK=7250110;EKZ=0] | U183: 3 | V183: 11649.5
B184: [KA=1;IK=2140100;EKZ=0] | C184: 1 | D184: 1 - Mainz-Kastel | E184: 1 | F184: 111000 - Verkauf PKW | G184: 111000 | H184: 10 - Mercedes-Benz | I184: 10 | J184: IST | K184: EXT | L184: 2023 | M184: 10 | N184: 26.97 | P184: [KA=1;IK=7263140;EKZ=0] | Q184: 1 | R184: 57.62 | T184: [KA=1;IK=7250140;EKZ=0] | U184: 3 | V184: 3604.26
B185: [KA=1;IK=2140100;EKZ=0] | C185: 1 | D185: 1 - Mainz-Kastel | E185: 1 | F185: 111000 - Verkauf PKW | G185: 111000 | H185: 10 - Mercedes-Benz | I185: 10 | J185: IST | K185: EXT | L185: 2023 | M185: 11 | N185: 34.55 | P185: [KA=1;IK=7400140;EKZ=0] | Q185: 3 | R185: 12000 | T185: [KA=1;IK=7250940;EKZ=0] | U185: 1 | V185: 295
B186: [KA=1;IK=2140100;EKZ=0] | C186: 1 | D186: 1 - Mainz-Kastel | E186: 1 | F186: 111000 - Verkauf PKW | G186: 111000 | H186: 10 - Mercedes-Benz | I186: 10 | J186: IST | K186: EXT | L186: 2023 | M186: 12 | N186: 66.5 | P186: [KA=1;IK=7430110;EKZ=0] | Q186: 3 | R186: 669.78 | T186: [KA=1;IK=7251100;EKZ=0] | U186: 3 | V186: 1120.76
B187: [KA=1;IK=2140100;EKZ=0] | C187: 1 | D187: 1 - Mainz-Kastel | E187: 1 | F187: 112000 - Verkauf PKW | G187: 112000 | H187: 10 - Mercedes-Benz | I187: 10 | J187: IST | K187: EXT | L187: 2023 | M187: 1 | N187: 26.99 | P187: [KA=1;IK=7430140;EKZ=0] | Q187: 3 | R187: 4210.34 | T187: [KA=1;IK=7253110;EKZ=0] | U187: 3 | V187: 6821.08
B188: [KA=1;IK=2140100;EKZ=0] | C188: 1 | D188: 1 - Mainz-Kastel | E188: 1 | F188: 112000 - Verkauf PKW | G188: 112000 | H188: 10 - Mercedes-Benz | I188: 10 | J188: IST | K188: EXT | L188: 2023 | M188: 2 | N188: 103.79 | P188: [KA=1;IK=8000110;EKZ=0] | Q188: 3 | R188: -25391.4 | T188: [KA=1;IK=7260110;EKZ=0] | U188: 3 | V188: 3086.63
B189: [KA=1;IK=2140100;EKZ=0] | C189: 1 | D189: 1 - Mainz-Kastel | E189: 1 | F189: 112000 - Verkauf PKW | G189: 112000 | H189: 10 - Mercedes-Benz | I189: 10 | J189: IST | K189: EXT | L189: 2023 | M189: 3 | N189: 21.92 | P189: [KA=1;IK=8000120;EKZ=0] | Q189: 1 | R189: -795.06 | T189: [KA=1;IK=7260140;EKZ=0] | U189: 3 | V189: 13615.92
B190: [KA=1;IK=2140100;EKZ=0] | C190: 1 | D190: 1 - Mainz-Kastel | E190: 1 | F190: 112000 - Verkauf PKW | G190: 112000 | H190: 10 - Mercedes-Benz | I190: 10 | J190: IST | K190: EXT | L190: 2023 | M190: 4 | N190: 61.36 | P190: [KA=1;IK=8000130;EKZ=0] | Q190: 2 | R190: -1873.69 | T190: [KA=1;IK=7260910;EKZ=0] | U190: 1 | V190: 3.79
B191: [KA=1;IK=2140100;EKZ=0] | C191: 1 | D191: 1 - Mainz-Kastel | E191: 1 | F191: 112000 - Verkauf PKW | G191: 112000 | H191: 10 - Mercedes-Benz | I191: 10 | J191: IST | K191: EXT | L191: 2023 | M191: 5 | N191: 65.08 | P191: [KA=1;IK=8001110;EKZ=0] | Q191: 1 | R191: 570 | T191: [KA=1;IK=7260940;EKZ=0] | U191: 3 | V191: 1078.29
B192: [KA=1;IK=2140100;EKZ=0] | C192: 1 | D192: 1 - Mainz-Kastel | E192: 1 | F192: 112000 - Verkauf PKW | G192: 112000 | H192: 10 - Mercedes-Benz | I192: 10 | J192: IST | K192: EXT | L192: 2023 | M192: 6 | N192: 71.76 | P192: [KA=1;IK=8007110;EKZ=0] | Q192: 1 | R192: -900 | T192: [KA=1;IK=7261100;EKZ=0] | U192: 3 | V192: 4633.88
B193: [KA=1;IK=2140100;EKZ=0] | C193: 1 | D193: 1 - Mainz-Kastel | E193: 1 | F193: 112000 - Verkauf PKW | G193: 112000 | H193: 10 - Mercedes-Benz | I193: 10 | J193: IST | K193: EXT | L193: 2023 | M193: 7 | N193: 58.58 | P193: [KA=1;IK=8030110;EKZ=0] | Q193: 3 | R193: -739174.79 | T193: [KA=1;IK=7262110;EKZ=0] | U193: 3 | V193: 4187.75
B194: [KA=1;IK=2140100;EKZ=0] | C194: 1 | D194: 1 - Mainz-Kastel | E194: 1 | F194: 112000 - Verkauf PKW | G194: 112000 | H194: 10 - Mercedes-Benz | I194: 10 | J194: IST | K194: EXT | L194: 2023 | M194: 8 | N194: 61.66 | P194: [KA=1;IK=8040110;EKZ=0] | Q194: 4 | R194: -100013.9 | T194: [KA=1;IK=7262140;EKZ=0] | U194: 3 | V194: 10440.39
B195: [KA=1;IK=2140100;EKZ=0] | C195: 1 | D195: 1 - Mainz-Kastel | E195: 1 | F195: 112000 - Verkauf PKW | G195: 112000 | H195: 10 - Mercedes-Benz | I195: 10 | J195: IST | K195: EXT | L195: 2023 | M195: 9 | N195: 72.97 | P195: [KA=1;IK=8040910;EKZ=0] | Q195: 1 | R195: -15172.9 | T195: [KA=1;IK=7263110;EKZ=0] | U195: 3 | V195: 479.28
B196: [KA=1;IK=2140100;EKZ=0] | C196: 1 | D196: 1 - Mainz-Kastel | E196: 1 | F196: 112000 - Verkauf PKW | G196: 112000 | H196: 10 - Mercedes-Benz | I196: 10 | J196: IST | K196: EXT | L196: 2023 | M196: 10 | N196: 53.93 | P196: [KA=1;IK=8041110;EKZ=0] | Q196: 1 | R196: -3697.46 | T196: [KA=1;IK=7263140;EKZ=0] | U196: 1 | V196: 271.5
B197: [KA=1;IK=2140100;EKZ=0] | C197: 1 | D197: 1 - Mainz-Kastel | E197: 1 | F197: 112000 - Verkauf PKW | G197: 112000 | H197: 10 - Mercedes-Benz | I197: 10 | J197: IST | K197: EXT | L197: 2023 | M197: 11 | N197: 69.1 | P197: [KA=1;IK=8041910;EKZ=0] | Q197: 1 | R197: -526.97 | T197: [KA=1;IK=7400140;EKZ=0] | U197: 3 | V197: 12000
B198: [KA=1;IK=2140100;EKZ=0] | C198: 1 | D198: 1 - Mainz-Kastel | E198: 1 | F198: 112000 - Verkauf PKW | G198: 112000 | H198: 10 - Mercedes-Benz | I198: 10 | J198: IST | K198: EXT | L198: 2023 | M198: 12 | N198: 132.99 | P198: [KA=1;IK=8060110;EKZ=0] | Q198: 2 | R198: -2262.9 | T198: [KA=1;IK=7430110;EKZ=0] | U198: 3 | V198: 24531.33
B199: [KA=1;IK=2140100;EKZ=0] | C199: 1 | D199: 1 - Mainz-Kastel | E199: 1 | F199: 121000 - Verkauf LKW | G199: 121000 | H199: 10 - Mercedes-Benz | I199: 10 | J199: IST | K199: EXT | L199: 2023 | M199: 1 | N199: 2.25 | P199: [KA=1;IK=8100110;EKZ=0] | Q199: 3 | R199: -5375.7 | T199: [KA=1;IK=8000110;EKZ=0] | U199: 3 | V199: -30506.95
B200: [KA=1;IK=2140100;EKZ=0] | C200: 1 | D200: 1 - Mainz-Kastel | E200: 1 | F200: 121000 - Verkauf LKW | G200: 121000 | H200: 10 - Mercedes-Benz | I200: 10 | J200: IST | K200: EXT | L200: 2023 | M200: 2 | N200: 8.65 | P200: [KA=1;IK=8106110;EKZ=0] | Q200: 3 | R200: -7786.23 | T200: [KA=1;IK=8000130;EKZ=0] | U200: 2 | V200: -2821.96
... 4300 more rows
